Workbook

Sheet DCP
E1: DCP TEST DATA | IO1: CBR | IP1: Layer 1 | IQ1: Layer 2 | IR1: Layer 3 | IS1: Layer 4 | IT1: Layer 5 | IU1: Layer 6 | IV1: MM
E2: File Name: | IO2: 0 | IP2: 10 | IV2: 0
IO3: 1 | IP3: 10 | IV3: 254
B4: Project: | C4: DCP Field Test | F4: Date: | G4: 2017-05-12 | IO4: 2 | IP4: 10 | IV4: 508
B5: Location: | C5: Location 1 | F5: Soil Type(s): | G5: Type in the soil type | IO5: 3 | IP5: 10 | IV5: 762
IO6: 4 | IP6: 10 | IV6: 10416
IO7: 5 | IP7: 10
IO8: 6 | IP8: 10
IO9: 7 | IP9: 10
A10: No. of | B10: Accumulative | C10: Type of | IO10: 8 | IP10: 10
A11: Blows | B11: Penetration | C11: Hammer | IO11: 9 | IP11: 10
B12: (mm) | IO12: 10 | IP12: 10
A13: 0 | B13: 0 | C13: 2
A14: 15 | B14: 20 | C14: 2
A15: 15 | B15: 40 | C15: 2
A16: 15 | B16: 65 | C16: 2
A17: 15 | B17: 85 | C17: 2
A18: 15 | B18: 110 | C18: 2
A19: 15 | B19: 140 | C19: 2
A20: 15 | B20: 165 | C20: 2
A21: 15 | B21: 190 | C21: 2
A22: 15 | B22: 215 | C22: 2
A23: 15 | B23: 235 | C23: 2
A24: 15 | B24: 250 | C24: 2
A25: 8 | B25: 265 | C25: 2
A26: 3 | B26: 275 | C26: 2
A27: 3 | B27: 290 | C27: 2
A28: 1 | B28: 300 | C28: 2
A29: 1 | B29: 310 | C29: 2
A30: 1 | B30: 430 | C30: 2
A31: 1 | B31: 485 | C31: 2
A32: 1 | B32: 525 | C32: 2
A33: 1 | B33: 555 | C33: 2
A34: 1 | B34: 580 | C34: 2
A35: 2 | B35: 620 | C35: 2
A36: 2 | B36: 655 | C36: 2
A37: 2 | B37: 690 | C37: 2
A38: 2 | B38: 720 | C38: 2
A39: 2 | B39: 760 | C39: 2
A40: 2 | B40: 790 | C40: 2
A41: 2 | B41: 820 | C41: 2
C42: 2
C43: 2
C44: 2
C45: 2
C46: 2
C47: 2
C48: 2
C49: 2
C50: 2
C51: 2
C52: 2
C53: 2
C54: 2
C55: 2
A57: Penetr./ | B57: Penetr./ | C57: Hammer | D57: DCP | E57: CBR | F57: Depth | G57: Depth | H57: Bearing Capacity | I57: Bearing Capacity
A58: Blow Set | B58: Blow | C58: Blow | D58: Index | E58: % | F58: in. | G58: mm | H58: psf | I58: psi
A59: mm | B59: mm | C59: Factor
A60: [3] | B60: [4] | C60: [5] | D60: [6] | F60: [8] | G60: [9] | H60: [10] | I60: [11]
A61: ----- | B61: ----- | C61: ----- | D61: ----- | E61: --- | F61: 0 | G61: =IF(F61=TRUE, TRUE(),(F61*25.4)) -> 0
A62: =IF(B14-B13<=0,TRUE,B14-B13) -> 20 | B62: =IF(A14<=0,TRUE,A62/A14) -> 1.333333333 | C62: =IF(C13<=0,TRUE,C13) -> 2 | D62: =B62*C62 -> 2.666666667 | E62: =IF((CODE(T($G$5))=72),(1/(0.002871*D62)),(IF((CODE(T($G$5))=76),(1/((0.017019*D62)^2)),(IF(AND((CODE(T($G$5))<>72),(CODE(T($G$5))<>76)),(292/(D62^1.12))))))) -> 97.34146347 | F62: =B13/25.4 -> 0 | G62: 0 | H62: =-0.7051*(E62^2)+167.99*E62+754.53 -> 10425.84575 | I62: =H62/144 -> 72.40170661
A63: =IF(B14-B13<=0,TRUE,B14-B13) -> 20 | B63: =IF(A14<=0,TRUE,A63/A14) -> 1.333333333 | C63: =IF(C13<=0,TRUE,C13) -> 2 | D63: 2.666666667 | E63: 97.34146347 | F63: =IF(B14<=0,F62,B14/25.4) -> 0.7874015748 | G63: 20 | H63: 10425.84575 | I63: =H63/144 -> 72.40170661
A64: =IF(B15-B14<=0,A62,(B15-B14)) -> 20 | B64: =IF(A15<=0,B62,A64/A15) -> 1.333333333 | C64: =IF(C14<=0,TRUE,C14) -> 2 | D64: 2.666666667 | E64: 97.34146347 | F64: =IF(B14<=0,F63,B14/25.4) -> 0.7874015748 | G64: 20 | H64: 10425.84575 | I64: 72.40170661
A65: =IF(B15-B14<=0,A63,(B15-B14)) -> 20 | B65: =IF(A15<=0,B63,A65/A15) -> 1.333333333 | C65: =IF(C14<=0,TRUE,C14) -> 2 | D65: 2.666666667 | E65: 97.34146347 | F65: =IF(B15<=0,F64,B15/25.4) -> 1.57480315 | G65: 40 | H65: 10425.84575 | I65: 72.40170661
A66: =IF(B16-B15<=0,A64,B16-B15) -> 25 | B66: =IF(A16<=0,B64,A66/A16) -> 1.666666667 | C66: =IF(C15<=0,TRUE,C15) -> 2 | D66: 3.333333333 | E66: 75.81561404 | F66: =IF(B15<=0,F65,B15/25.4) -> 1.57480315 | G66: 40 | H66: 9437.875033 | I66: 65.54079884
A67: =IF(B16-B15<=0,A65,B16-B15) -> 25 | B67: =IF(A16<=0,B65,A67/A16) -> 1.666666667 | C67: =IF(C15<=0,TRUE,C15) -> 2 | D67: 3.333333333 | E67: 75.81561404 | F67: =IF(B16<=0,F66,B16/25.4) -> 2.559055118 | G67: 65 | H67: 9437.875033 | I67: 65.54079884
A68: =IF(B17-B16<=0,A66,B17-B16) -> 20 | B68: =IF(A17<=0,B66,A68/A17) -> 1.333333333 | C68: =IF(C16<=0,TRUE,C16) -> 2 | D68: 2.666666667 | E68: 97.34146347 | F68: =IF(B16<=0,F67,B16/25.4) -> 2.559055118 | G68: 65 | H68: 10425.84575 | I68: 72.40170661
A69: =IF(B17-B16<=0,A67,B17-B16) -> 20 | B69: =IF(A17<=0,B67,A69/A17) -> 1.333333333 | C69: =IF(C16<=0,TRUE,C16) -> 2 | D69: 2.666666667 | E69: 97.34146347 | F69: =IF(B17<=0,F68,B17/25.4) -> 3.346456693 | G69: 85 | H69: 10425.84575 | I69: 72.40170661
A70: =IF(B18-B17<=0,A68,B18-B17) -> 25 | B70: =IF(A18<=0,B68,A70/A18) -> 1.666666667 | C70: =IF(C17<=0,TRUE,C17) -> 2 | D70: 3.333333333 | E70: 75.81561404 | F70: =IF(B17<=0,F69,B17/25.4) -> 3.346456693 | G70: 85 | H70: 9437.875033 | I70: 65.54079884
A71: =IF(B18-B17<=0,A69,B18-B17) -> 25 | B71: =IF(A18<=0,B69,A71/A18) -> 1.666666667 | C71: =IF(C17<=0,TRUE,C17) -> 2 | D71: 3.333333333 | E71: 75.81561404 | F71: =IF(B18<=0,F70,B18/25.4) -> 4.330708661 | G71: 110 | H71: 9437.875033 | I71: 65.54079884
A72: =IF(B19-B18<=0,A70,B19-B18) -> 30 | B72: =IF(A19<=0,B70,A72/A19) -> 2 | C72: =IF(C18<=0,TRUE,C18) -> 2 | D72: 4 | E72: 61.8124078 | F72: =IF(B18<=0,F71,B18/25.4) -> 4.330708661 | G72: 110 | H72: 8444.36881 | I72: 58.64145007
A73: =IF(B19-B18<=0,A71,B19-B18) -> 30 | B73: =IF(A19<=0,B71,A73/A19) -> 2 | C73: =IF(C18<=0,TRUE,C18) -> 2 | D73: 4 | E73: 61.8124078 | F73: =IF(B19<=0,F72,B19/25.4) -> 5.511811024 | G73: 140 | H73: 8444.36881 | I73: 58.64145007
A74: =IF(B20-B19<=0,A72,B20-B19) -> 25 | B74: =IF(A20<=0,B72,A74/A20) -> 1.666666667 | C74: =IF(C19<=0,TRUE,C19) -> 2 | D74: 3.333333333 | E74: 75.81561404 | F74: =IF(B19<=0,F73,B19/25.4) -> 5.511811024 | G74: 140 | H74: 9437.875033 | I74: 65.54079884
A75: =IF(B20-B19<=0,A73,B20-B19) -> 25 | B75: =IF(A20<=0,B73,A75/A20) -> 1.666666667 | C75: =IF(C19<=0,TRUE,C19) -> 2 | D75: 3.333333333 | E75: 75.81561404 | F75: =IF(B20<=0,F74,B20/25.4) -> 6.496062992 | G75: 165 | H75: 9437.875033 | I75: 65.54079884
A76: =IF(B21-B20<=0,A74,B21-B20) -> 25 | B76: =IF(A21<=0,B74,A76/A21) -> 1.666666667 | C76: =IF(C20<=0,TRUE,C20) -> 2 | D76: 3.333333333 | E76: 75.81561404 | F76: =IF(B20<=0,F75,B20/25.4) -> 6.496062992 | G76: 165 | H76: 9437.875033 | I76: 65.54079884
A77: =IF(B21-B20<=0,A75,B21-B20) -> 25 | B77: =IF(A21<=0,B75,A77/A21) -> 1.666666667 | C77: =IF(C20<=0,TRUE,C20) -> 2 | D77: 3.333333333 | E77: 75.81561404 | F77: =IF(B21<=0,F76,B21/25.4) -> 7.480314961 | G77: 190 | H77: 9437.875033 | I77: 65.54079884
A78: =IF(B22-B21<=0,A76,B22-B21) -> 25 | B78: =IF(A22<=0,B76,A78/A22) -> 1.666666667 | C78: =IF(C21<=0,TRUE,C21) -> 2 | D78: 3.333333333 | E78: 75.81561404 | F78: =IF(B21<=0,F77,B21/25.4) -> 7.480314961 | G78: 190 | H78: 9437.875033 | I78: 65.54079884
A79: =IF(B22-B21<=0,A77,B22-B21) -> 25 | B79: =IF(A22<=0,B77,A79/A22) -> 1.666666667 | C79: =IF(C21<=0,TRUE,C21) -> 2 | D79: 3.333333333 | E79: 75.81561404 | F79: =IF(B22<=0,F78,B22/25.4) -> 8.464566929 | G79: 215 | H79: 9437.875033 | I79: 65.54079884
A80: =IF(B23-B22<=0,A78,B23-B22) -> 20 | B80: =IF(A23<=0,B78,A80/A23) -> 1.333333333 | C80: =IF(C22<=0,TRUE,C22) -> 2 | D80: 2.666666667 | E80: 97.34146347 | F80: =IF(B22<=0,F79,B22/25.4) -> 8.464566929 | G80: 215 | H80: 10425.84575 | I80: 72.40170661
A81: =IF(B23-B22<=0,A79,B23-B22) -> 20 | B81: =IF(A23<=0,B79,A81/A23) -> 1.333333333 | C81: =IF(C22<=0,TRUE,C22) -> 2 | D81: 2.666666667 | E81: 97.34146347 | F81: =IF(B23<=0,F80,B23/25.4) -> 9.251968504 | G81: 235 | H81: 10425.84575 | I81: 72.40170661
A82: =IF(B24-B23<=0,A80,B24-B23) -> 15 | B82: =IF(A24<=0,B80,A82/A24) -> 1 | C82: =IF(C23<=0,TRUE,C23) -> 2 | D82: 2 | E82: 134.347397 | F82: =IF(B23<=0,F81,B23/25.4) -> 9.251968504 | G82: 235 | H82: 10597.04203 | I82: 73.59056964
A83: =IF(B24-B23<=0,A81,B24-B23) -> 15 | B83: =IF(A24<=0,B81,A83/A24) -> 1 | C83: =IF(C23<=0,TRUE,C23) -> 2 | D83: 2 | E83: 134.347397 | F83: =IF(B24<=0,F82,B24/25.4) -> 9.842519685 | G83: 250 | H83: 10597.04203 | I83: 73.59056964
A84: =IF(B25-B24<=0,A82,B25-B24) -> 15 | B84: =IF(A25<=0,B82,A84/A25) -> 1.875 | C84: =IF(C24<=0,TRUE,C24) -> 2 | D84: 3.75 | E84: 66.44584543 | F84: =IF(B24<=0,F83,B24/25.4) -> 9.842519685 | G84: 250 | H84: 8803.715555 | I84: 61.13691357
A85: =IF(B25-B24<=0,A83,B25-B24) -> 15 | B85: =IF(A25<=0,B83,A85/A25) -> 1.875 | C85: =IF(C24<=0,TRUE,C24) -> 2 | D85: 3.75 | E85: 66.44584543 | F85: =IF(B25<=0,F84,B25/25.4) -> 10.43307087 | G85: 265 | H85: 8803.715555 | I85: 61.13691357
A86: =IF(B26-B25<=0,A84,B26-B25) -> 10 | B86: =IF(A26<=0,B84,A86/A26) -> 3.333333333 | C86: =IF(C25<=0,TRUE,C25) -> 2 | D86: 6.666666667 | E86: 34.88229588 | F86: =IF(B25<=0,F85,B25/25.4) -> 10.43307087 | G86: 265 | H86: 5756.459139 | I86: 39.97541069
A87: =IF(B26-B25<=0,A85,B26-B25) -> 10 | B87: =IF(A26<=0,B85,A87/A26) -> 3.333333333 | C87: =IF(C25<=0,TRUE,C25) -> 2 | D87: 6.666666667 | E87: 34.88229588 | F87: =IF(B26<=0,F86,B26/25.4) -> 10.82677165 | G87: 275 | H87: 5756.459139 | I87: 39.97541069
A88: =IF(B27-B26<=0,A86,B27-B26) -> 15 | B88: =IF(A27<=0,B86,A88/A27) -> 5 | C88: =IF(C26<=0,TRUE,C26) -> 2 | D88: 10 | E88: 22.15046519 | F88: =IF(B26<=0,F87,B26/25.4) -> 10.82677165 | G88: 275 | H88: 4129.634192 | I88: 28.67801522
A89: =IF(B27-B26<=0,A87,B27-B26) -> 15 | B89: =IF(A27<=0,B87,A89/A27) -> 5 | C89: =IF(C26<=0,TRUE,C26) -> 2 | D89: 10 | E89: 22.15046519 | F89: =IF(B27<=0,F88,B27/25.4) -> 11.41732283 | G89: 290 | H89: 4129.634192 | I89: 28.67801522
A90: =IF(B28-B27<=0,A88,B28-B27) -> 10 | B90: =IF(A28<=0,B88,A90/A28) -> 10 | C90: =IF(C27<=0,TRUE,C27) -> 2 | D90: 20 | E90: 10.19129226 | F90: =IF(B27<=0,F89,B27/25.4) -> 11.41732283 | G90: 290 | H90: 2393.331782 | I90: 16.6203596
A91: =IF(B28-B27<=0,A89,B28-B27) -> 10 | B91: =IF(A28<=0,B89,A91/A28) -> 10 | C91: =IF(C27<=0,TRUE,C27) -> 2 | D91: 20 | E91: 10.19129226 | F91: =IF(B28<=0,F90,B28/25.4) -> 11.81102362 | G91: 300 | H91: 2393.331782 | I91: 16.6203596
A92: =IF(B29-B28<=0,A90,B29-B28) -> 10 | B92: =IF(A29<=0,B90,A92/A29) -> 10 | C92: =IF(C28<=0,TRUE,C28) -> 2 | D92: 20 | E92: 10.19129226 | F92: =IF(B28<=0,F91,B28/25.4) -> 11.81102362 | G92: 300 | H92: 2393.331782 | I92: 16.6203596
A93: =IF(B29-B28<=0,A91,B29-B28) -> 10 | B93: =IF(A29<=0,B91,A93/A29) -> 10 | C93: =IF(C28<=0,TRUE,C28) -> 2 | D93: 20 | E93: 10.19129226 | F93: =IF(B29<=0,F92,B29/25.4) -> 12.20472441 | G93: =IF(F93=TRUE, TRUE(),(F93*25.4)) -> 310 | H93: 2393.331782 | I93: 16.6203596
A94: =IF(B30-B29<=0,A92,B30-B29) -> 120 | B94: =IF(A30<=0,B92,A94/A30) -> 120 | C94: =IF(C29<=0,TRUE,C29) -> 2 | D94: =B94*C94 -> 240 | E94: =IF((CODE(T($G$5))=72),(1/(0.002871*D94)),(IF((CODE(T($G$5))=76),(1/((0.017019*D94)^2)),(IF(AND((CODE(T($G$5))<>72),(CODE(T($G$5))<>76)),(292/(D94^1.12))))))) -> 0.6302984813 | F94: =IF(B29<=0,F93,B29/25.4) -> 12.20472441 | G94: 310 | H94: 860.1337225 | I94: 5.97315085
A95: =IF(B30-B29<=0,A93,B30-B29) -> 120 | B95: =IF(A30<=0,B93,A95/A30) -> 120 | C95: =IF(C29<=0,TRUE,C29) -> 2 | D95: 240 | E95: 0.6302984813 | F95: =IF(B30<=0,F94,B30/25.4) -> 16.92913386 | G95: 430 | H95: 860.1337225 | I95: 5.97315085
A96: =IF(B31-B30<=0,A94,B31-B30) -> 55 | B96: =IF(A31<=0,B94,A96/A31) -> 55 | C96: =IF(C30<=0,TRUE,C30) -> 2 | D96: 110 | E96: 1.510160283 | F96: =IF(B30<=0,F95,B30/25.4) -> 16.92913386 | G96: 430 | H96: 1006.613786 | I96: 6.990373514
A97: =IF(B31-B30<=0,A95,B31-B30) -> 55 | B97: =IF(A31<=0,B95,A97/A31) -> 55 | C97: =IF(C30<=0,TRUE,C30) -> 2 | D97: 110 | E97: 1.510160283 | F97: =IF(B31<=0,F96,B31/25.4) -> 19.09448819 | G97: 485 | H97: 1006.613786 | I97: 6.990373514
A98: =IF(B32-B31<=0,A96,B32-B31) -> 40 | B98: =IF(A32<=0,B96,A98/A32) -> 40 | C98: =IF(C31<=0,TRUE,C31) -> 2 | D98: 80 | E98: 2.157357237 | F98: =IF(B31<=0,F97,B31/25.4) -> 19.09448819 | G98: 485 | H98: 1113.662773 | I98: 7.733769255
A99: =IF(B32-B31<=0,A97,B32-B31) -> 40 | B99: =IF(A32<=0,B97,A99/A32) -> 40 | C99: =IF(C31<=0,TRUE,C31) -> 2 | D99: 80 | E99: 2.157357237 | F99: =IF(B32<=0,F98,B32/25.4) -> 20.66929134 | G99: 525 | H99: 1113.662773 | I99: 7.733769255
A100: =IF(B33-B32<=0,A98,B33-B32) -> 30 | B100: =IF(A33<=0,B98,A100/A33) -> 30 | C100: =IF(C32<=0,TRUE,C32) -> 2 | D100: 60 | E100: 2.977511524 | F100: =IF(B32<=0,F99,B32/25.4) -> 20.66929134 | G100: 525 | H100: 1248.471044 | I100: 8.669937806
A101: =IF(B33-B32<=0,A99,B33-B32) -> 30 | B101: =IF(A33<=0,B99,A101/A33) -> 30 | C101: =IF(C32<=0,TRUE,C32) -> 2 | D101: 60 | E101: 2.977511524 | F101: =IF(B33<=0,F100,B33/25.4) -> 21.8503937 | G101: 555 | H101: 1248.471044 | I101: 8.669937806
A102: =IF(B34-B33<=0,A100,B34-B33) -> 25 | B102: =IF(A34<=0,B100,A102/A34) -> 25 | C102: =IF(C33<=0,TRUE,C33) -> 2 | D102: 50 | E102: 3.652047745 | F102: =IF(B33<=0,F101,B33/25.4) -> 21.8503937 | G102: 555 | H102: 1358.633263 | I102: 9.434953213
A103: =IF(B34-B33<=0,A101,B34-B33) -> 25 | B103: =IF(A34<=0,B101,A103/A34) -> 25 | C103: =IF(C33<=0,TRUE,C33) -> 2 | D103: 50 | E103: 3.652047745 | F103: =IF(B34<=0,F102,B34/25.4) -> 22.83464567 | G103: 580 | H103: 1358.633263 | I103: 9.434953213
A104: =IF(B35-B34<=0,A102,B35-B34) -> 40 | B104: =IF(A35<=0,B102,A104/A35) -> 20 | C104: =IF(C34<=0,TRUE,C34) -> 2 | D104: 40 | E104: 4.688950642 | F104: =IF(B34<=0,F103,B34/25.4) -> 22.83464567 | G104: 580 | H104: 1526.724308 | I104: 10.60225214
A105: =IF(B35-B34<=0,A103,B35-B34) -> 40 | B105: =IF(A35<=0,B103,A105/A35) -> 20 | C105: =IF(C34<=0,TRUE,C34) -> 2 | D105: 40 | E105: 4.688950642 | F105: =IF(B35<=0,F104,B35/25.4) -> 24.40944882 | G105: 620 | H105: 1526.724308 | I105: 10.60225214
A106: =IF(B36-B35<=0,A104,B36-B35) -> 35 | B106: =IF(A36<=0,B104,A106/A36) -> 17.5 | C106: =IF(C35<=0,TRUE,C35) -> 2 | D106: 35 | E106: 5.445360564 | F106: =IF(B35<=0,F105,B35/25.4) -> 24.40944882 | G106: 620 | H106: 1648.38853 | I106: 11.44714257
A107: =IF(B36-B35<=0,A105,B36-B35) -> 35 | B107: =IF(A36<=0,B105,A107/A36) -> 17.5 | C107: =IF(C35<=0,TRUE,C35) -> 2 | D107: 35 | E107: 5.445360564 | F107: =IF(B36<=0,F106,B36/25.4) -> 25.78740157 | G107: 655 | H107: 1648.38853 | I107: 11.44714257
A108: =IF(B37-B36<=0,A106,B37-B36) -> 35 | B108: =IF(A37<=0,B106,A108/A37) -> 17.5 | C108: =IF(C36<=0,TRUE,C36) -> 2 | D108: 35 | E108: 5.445360564 | F108: =IF(B36<=0,F107,B36/25.4) -> 25.78740157 | G108: 655 | H108: 1648.38853 | I108: 11.44714257
A109: =IF(B37-B36<=0,A107,B37-B36) -> 35 | B109: =IF(A37<=0,B107,A109/A37) -> 17.5 | C109: =IF(C36<=0,TRUE,C36) -> 2 | D109: 35 | E109: 5.445360564 | F109: =IF(B37<=0,F108,B37/25.4) -> 27.16535433 | G109: 690 | H109: 1648.38853 | I109: 11.44714257
A110: =IF(B38-B37<=0,A108,B38-B37) -> 30 | B110: =IF(A38<=0,B108,A110/A38) -> 15 | C110: =IF(C37<=0,TRUE,C37) -> 2 | D110: 30 | E110: 6.471531153 | F110: =IF(B37<=0,F109,B37/25.4) -> 27.16535433 | G110: 690 | H110: 1812.152426 | I110: 12.58439185
A111: =IF(B38-B37<=0,A109,B38-B37) -> 30 | B111: =IF(A38<=0,B109,A111/A38) -> 15 | C111: =IF(C37<=0,TRUE,C37) -> 2 | D111: 30 | E111: 6.471531153 | F111: =IF(B38<=0,F110,B38/25.4) -> 28.34645669 | G111: 720 | H111: 1812.152426 | I111: 12.58439185
A112: =IF(B39-B38<=0,A110,B39-B38) -> 40 | B112: =IF(A39<=0,B110,A112/A39) -> 20 | C112: =IF(C38<=0,TRUE,C38) -> 2 | D112: 40 | E112: 4.688950642 | F112: =IF(B38<=0,F111,B38/25.4) -> 28.34645669 | G112: 720 | H112: 1526.724308 | I112: 10.60225214
A113: =IF(B39-B38<=0,A111,B39-B38) -> 40 | B113: =IF(A39<=0,B111,A113/A39) -> 20 | C113: =IF(C38<=0,TRUE,C38) -> 2 | D113: 40 | E113: 4.688950642 | F113: =IF(B39<=0,F112,B39/25.4) -> 29.92125984 | G113: 760 | H113: 1526.724308 | I113: 10.60225214
A114: =IF(B40-B39<=0,A112,B40-B39) -> 30 | B114: =IF(A40<=0,B112,A114/A40) -> 15 | C114: =IF(C39<=0,TRUE,C39) -> 2 | D114: 30 | E114: 6.471531153 | F114: =IF(B39<=0,F113,B39/25.4) -> 29.92125984 | G114: 760 | H114: 1812.152426 | I114: 12.58439185
A115: =IF(B40-B39<=0,A113,B40-B39) -> 30 | B115: =IF(A40<=0,B113,A115/A40) -> 15 | C115: =IF(C39<=0,TRUE,C39) -> 2 | D115: 30 | E115: 6.471531153 | F115: =IF(B40<=0,F114,B40/25.4) -> 31.1023622 | G115: 790 | H115: 1812.152426 | I115: 12.58439185
A116: =IF(B41-B40<=0,A114,B41-B40) -> 30 | B116: =IF(A41<=0,B114,A116/A41) -> 15 | C116: =IF(C40<=0,TRUE,C40) -> 2 | D116: 30 | E116: 6.471531153 | F116: =IF(B40<=0,F115,B40/25.4) -> 31.1023622 | G116: 790 | H116: 1812.152426 | I116: 12.58439185
A117: =IF(B41-B40<=0,A115,B41-B40) -> 30 | B117: =IF(A41<=0,B115,A117/A41) -> 15 | C117: =IF(C40<=0,TRUE,C40) -> 2 | D117: 30 | E117: 6.471531153 | F117: =IF(B41<=0,F116,B41/25.4) -> 32.28346457 | G117: 820 | H117: 1812.152426 | I117: 12.58439185
A118: =IF(B42-B41<=0,A116,B42-B41) -> 30 | B118: =IF(A42<=0,B116,A118/A42) -> 15 | C118: =IF(C41<=0,TRUE,C41) -> 2 | D118: 30 | E118: 6.471531153 | F118: =IF(B41<=0,F117,B41/25.4) -> 32.28346457 | G118: 820 | H118: 1812.152426 | I118: 12.58439185
A119: =IF(B42-B41<=0,A117,B42-B41) -> 30 | B119: =IF(A42<=0,B117,A119/A42) -> 15 | C119: =IF(C41<=0,TRUE,C41) -> 2 | D119: 30 | E119: 6.471531153 | F119: =IF(B42<=0,F118,B42/25.4) -> 32.28346457 | G119: 820 | H119: 1812.152426 | I119: 12.58439185
A120: =IF(B43-B42<=0,A118,B43-B42) -> 30 | B120: =IF(A43<=0,B118,A120/A43) -> 15 | C120: =IF(C42<=0,TRUE,C42) -> 2 | D120: 30 | E120: 6.471531153 | F120: =IF(B42<=0,F119,B42/25.4) -> 32.28346457 | G120: 820 | H120: 1812.152426 | I120: 12.58439185
A121: =IF(B43-B42<=0,A119,B43-B42) -> 30 | B121: =IF(A43<=0,B119,A121/A43) -> 15 | C121: =IF(C42<=0,TRUE,C42) -> 2 | D121: 30 | E121: 6.471531153 | F121: =IF(B43<=0,F120,B43/25.4) -> 32.28346457 | G121: 820 | H121: 1812.152426 | I121: 12.58439185
A122: =IF(B44-B43<=0,A120,B44-B43) -> 30 | B122: =IF(A44<=0,B120,A122/A44) -> 15 | C122: =IF(C43<=0,TRUE,C43) -> 2 | D122: 30 | E122: 6.471531153 | F122: =IF(B43<=0,F121,B43/25.4) -> 32.28346457 | G122: 820 | H122: 1812.152426 | I122: 12.58439185
A123: =IF(B44-B43<=0,A121,B44-B43) -> 30 | B123: =IF(A44<=0,B121,A123/A44) -> 15 | C123: =IF(C43<=0,TRUE,C43) -> 2 | D123: 30 | E123: 6.471531153 | F123: =IF(B44<=0,F122,B44/25.4) -> 32.28346457 | G123: 820 | H123: 1812.152426 | I123: 12.58439185
A124: =IF(B45-B44<=0,A122,B45-B44) -> 30 | B124: =IF(A45<=0,B122,A124/A45) -> 15 | C124: =IF(C44<=0,TRUE,C44) -> 2 | D124: 30 | E124: 6.471531153 | F124: =IF(B44<=0,F123,B44/25.4) -> 32.28346457 | G124: 820 | H124: 1812.152426 | I124: 12.58439185
A125: =IF(B45-B44<=0,A123,B45-B44) -> 30 | B125: =IF(A45<=0,B123,A125/A45) -> 15 | C125: =IF(C44<=0,TRUE,C44) -> 2 | D125: 30 | E125: 6.471531153 | F125: =IF(B45<=0,F124,B45/25.4) -> 32.28346457 | G125: =IF(F125=TRUE, TRUE(),(F125*25.4)) -> 820 | H125: 1812.152426 | I125: 12.58439185
A126: =IF(B46-B45<=0,A124,B46-B45) -> 30 | B126: =IF(A46<=0,B124,A126/A46) -> 15 | C126: =IF(C45<=0,TRUE,C45) -> 2 | D126: =B126*C126 -> 30 | E126: =IF((CODE(T($G$5))=72),(1/(0.002871*D126)),(IF((CODE(T($G$5))=76),(1/((0.017019*D126)^2)),(IF(AND((CODE(T($G$5))<>72),(CODE(T($G$5))<>76)),(292/(D126^1.12))))))) -> 6.471531153 | F126: =IF(B45<=0,F125,B45/25.4) -> 32.28346457 | G126: 820 | H126: =-0.7051*(E126^2)+167.99*E126+754.53 -> 1812.152426 | I126: 12.58439185
A127: =IF(B46-B45<=0,A125,B46-B45) -> 30 | B127: =IF(A46<=0,B125,A127/A46) -> 15 | C127: =IF(C45<=0,TRUE,C45) -> 2 | D127: 30 | E127: 6.471531153 | F127: =IF(B46<=0,F126,B46/25.4) -> 32.28346457 | G127: 820 | H127: 1812.152426 | I127: =H127/144 -> 12.58439185
A128: =IF(B47-B46<=0,A126,B47-B46) -> 30 | B128: =IF(A47<=0,B126,A128/A47) -> 15 | C128: =IF(C46<=0,TRUE,C46) -> 2 | D128: 30 | E128: 6.471531153 | F128: =IF(B46<=0,F127,B46/25.4) -> 32.28346457 | G128: 820 | H128: 1812.152426 | I128: 12.58439185
A129: =IF(B47-B46<=0,A127,B47-B46) -> 30 | B129: =IF(A47<=0,B127,A129/A47) -> 15 | C129: =IF(C46<=0,TRUE,C46) -> 2 | D129: 30 | E129: 6.471531153 | F129: =IF(B47<=0,F128,B47/25.4) -> 32.28346457 | G129: 820 | H129: 1812.152426 | I129: 12.58439185
A130: =IF(B48-B47<=0,A128,B48-B47) -> 30 | B130: =IF(A48<=0,B128,A130/A48) -> 15 | C130: =IF(C47<=0,TRUE,C47) -> 2 | D130: 30 | E130: 6.471531153 | F130: =IF(B47<=0,F129,B47/25.4) -> 32.28346457 | G130: 820 | H130: 1812.152426 | I130: 12.58439185
A131: =IF(B48-B47<=0,A129,B48-B47) -> 30 | B131: =IF(A48<=0,B129,A131/A48) -> 15 | C131: =IF(C47<=0,TRUE,C47) -> 2 | D131: 30 | E131: 6.471531153 | F131: =IF(B48<=0,F130,B48/25.4) -> 32.28346457 | G131: 820 | H131: 1812.152426 | I131: 12.58439185
A132: =IF(B49-B48<=0,A130,B49-B48) -> 30 | B132: =IF(A49<=0,B130,A132/A49) -> 15 | C132: =IF(C48<=0,TRUE,C48) -> 2 | D132: 30 | E132: 6.471531153 | F132: =IF(B48<=0,F131,B48/25.4) -> 32.28346457 | G132: 820 | H132: 1812.152426 | I132: 12.58439185
A133: =IF(B49-B48<=0,A131,B49-B48) -> 30 | B133: =IF(A49<=0,B131,A133/A49) -> 15 | C133: =IF(C48<=0,TRUE,C48) -> 2 | D133: 30 | E133: 6.471531153 | F133: =IF(B49<=0,F132,B49/25.4) -> 32.28346457 | G133: 820 | H133: 1812.152426 | I133: 12.58439185
A134: =IF(B50-B49<=0,A132,B50-B49) -> 30 | B134: =IF(A50<=0,B132,A134/A50) -> 15 | C134: =IF(C49<=0,TRUE,C49) -> 2 | D134: 30 | E134: 6.471531153 | F134: =IF(B49<=0,F133,B49/25.4) -> 32.28346457 | G134: 820 | H134: 1812.152426 | I134: 12.58439185
A135: =IF(B50-B49<=0,A133,B50-B49) -> 30 | B135: =IF(A50<=0,B133,A135/A50) -> 15 | C135: =IF(C49<=0,TRUE,C49) -> 2 | D135: 30 | E135: 6.471531153 | F135: =IF(B50<=0,F134,B50/25.4) -> 32.28346457 | G135: 820 | H135: 1812.152426 | I135: 12.58439185
A136: =IF(B51-B50<=0,A134,B51-B50) -> 30 | B136: =IF(A51<=0,B134,A136/A51) -> 15 | C136: =IF(C50<=0,TRUE,C50) -> 2 | D136: 30 | E136: 6.471531153 | F136: =IF(B50<=0,F135,B50/25.4) -> 32.28346457 | G136: 820 | H136: 1812.152426 | I136: 12.58439185
A137: =IF(B51-B50<=0,A135,B51-B50) -> 30 | B137: =IF(A51<=0,B135,A137/A51) -> 15 | C137: =IF(C50<=0,TRUE,C50) -> 2 | D137: 30 | E137: 6.471531153 | F137: =IF(B51<=0,F136,B51/25.4) -> 32.28346457 | G137: 820 | H137: 1812.152426 | I137: 12.58439185
A138: =IF(B52-B51<=0,A136,B52-B51) -> 30 | B138: =IF(A52<=0,B136,A138/A52) -> 15 | C138: =IF(C51<=0,TRUE,C51) -> 2 | D138: 30 | E138: 6.471531153 | F138: =IF(B51<=0,F137,B51/25.4) -> 32.28346457 | G138: 820 | H138: 1812.152426 | I138: 12.58439185
A139: =IF(B52-B51<=0,A137,B52-B51) -> 30 | B139: =IF(A52<=0,B137,A139/A52) -> 15 | C139: =IF(C51<=0,TRUE,C51) -> 2 | D139: 30 | E139: 6.471531153 | F139: =IF(B52<=0,F138,B52/25.4) -> 32.28346457 | G139: 820 | H139: 1812.152426 | I139: 12.58439185
A140: =IF(B53-B52<=0,A138,B53-B52) -> 30 | B140: =IF(A53<=0,B138,A140/A53) -> 15 | C140: =IF(C52<=0,TRUE,C52) -> 2 | D140: 30 | E140: 6.471531153 | F140: =IF(B52<=0,F139,B52/25.4) -> 32.28346457 | G140: 820 | H140: 1812.152426 | I140: 12.58439185
A141: =IF(B53-B52<=0,A139,B53-B52) -> 30 | B141: =IF(A53<=0,B139,A141/A53) -> 15 | C141: =IF(C52<=0,TRUE,C52) -> 2 | D141: 30 | E141: 6.471531153 | F141: =IF(B53<=0,F140,B53/25.4) -> 32.28346457 | G141: 820 | H141: 1812.152426 | I141: 12.58439185
A142: =IF(B54-B53<=0,A140,B54-B53) -> 30 | B142: =IF(A54<=0,B140,A142/A54) -> 15 | C142: =IF(C53<=0,TRUE,C53) -> 2 | D142: 30 | E142: 6.471531153 | F142: =IF(B53<=0,F141,B53/25.4) -> 32.28346457 | G142: 820 | H142: 1812.152426 | I142: 12.58439185
A143: =IF(B54-B53<=0,A141,B54-B53) -> 30 | B143: =IF(A54<=0,B141,A143/A54) -> 15 | C143: =IF(C53<=0,TRUE,C53) -> 2 | D143: 30 | E143: 6.471531153 | F143: =IF(B54<=0,F142,B54/25.4) -> 32.28346457 | G143: 820 | H143: 1812.152426 | I143: 12.58439185
A144: =IF(B55-B54<=0,A142,B55-B54) -> 30 | B144: =IF(A55<=0,B142,A144/A55) -> 15 | C144: =IF(C54<=0,TRUE,C54) -> 2 | D144: 30 | E144: 6.471531153 | F144: =IF(B54<=0,F143,B54/25.4) -> 32.28346457 | G144: 820 | H144: 1812.152426 | I144: 12.58439185
